{"text_format":"1","workbook":"xlsx","n_sheets":6,"sheets":["USD_Org","USD_2","USD_3","JPY","Ind_IDR","Ind_USD"],"not_rendered":{"charts":0,"images":0,"macros":1,"external_links":0,"defined_names":0,"comments":0,"pivot_tables":0},"unopened":[],"bounds":{"document_bytes":16777216,"sheet_cells":100000,"rows_first":2000,"rows_last":500,"rows_between":2000,"halvings":0,"cell_chars":16384,"cell_head_chars":4096},"cells_cut":0,"cells_raw":0,"read":"whole","date_system":"1900"}

{"sheet":"USD_Org","index":0,"n_rows":12,"n_cols":4,"rows_kept":12,"cut":false,"hidden":false,"merged":[]}
["Converter-1 (USD) : USD Amount Number to English Word"]
[null,"The original Spell Number VBA Macro was prepared by Microsoft in following URL."]
[null,"URL :","How to convert number to words in Excel (ablebits.com)"]
[]
[null,"Trial Output"]
[null,null,"User Define Function : SpellNumber()"]
[null,"Number","Currency Alphabet Word Converted"]
[null,123456789.56,{"$f":"SpellNumber(B8)","v":"One Hundred Twenty Three Million Four Hundred Fifty Six Thousand Seven Hundred Eighty Nine Dollars and Fifty Six Cents"}]
[null,364597,{"$f":"SpellNumber(B9)","v":"Three Hundred Sixty Four Thousand Five Hundred Ninety Seven Dollars and No Cents"},"<-- Display \"No Cents\""]
[null,11.34,"Eleven Dollars and Thirty Four Cents"]
[null,23.68,"Twenty Three Dollars and Sixty Eight Cents"]
[null,946257,"Nine Hundred Forty Six Thousand Two Hundred Fifty Seven Dollars and No Cents","<-- Display \"No Cents\""]

{"sheet":"USD_2","index":1,"n_rows":12,"n_cols":4,"rows_kept":12,"cut":false,"hidden":false,"merged":[]}
["Converter-2 (USD) : USD Amount Number to English Word"]
[null,"This Spell Number VBA Macro displays USD Currency English Word with no indication of \"no cents\"."]
[null,"This VBA Macro was prepared on Microsoft Spell Numbering VBA Macro with minor modification."]
[]
[null,"Trial Output"]
[null,null,"User Define Function : SpellNumber_USD()"]
[null,"Number","Currency Alphabet Word Converted"]
[null,123456789.56,{"$f":"SpellNumber_USD(B8)","v":"One Hundred Twenty Three Million Four Hundred Fifty SixThousandSeven Hundred Eighty Nine Dollars and Fifty Six Cents"}]
[null,364597,{"$f":"SpellNumber_USD(B9)","v":"Three Hundred Sixty FourThousandFive Hundred Ninety Seven Dollars"},"<-- No display \"No Cents\""]
[null,11.34,"Eleven Dollars and Thirty Four Cents"]
[null,23.68,"Twenty Three Dollars and Sixty Eight Cents"]
[null,946257,"Nine Hundred Forty SixThousandTwo Hundred Fifty Seven Dollars","<-- No display \"No Cents\""]

{"sheet":"USD_3","index":2,"n_rows":12,"n_cols":4,"rows_kept":12,"cut":false,"hidden":false,"merged":[]}
["Converter-3 (USD) : USD Amount Number to English Word"]
[null,"This Spell Number VBA Macro displays USD Currency English Word with no display of Cents."]
[null,"This VBA Macro was prepared on Microsoft Spell Numbering VBA Macro with minor modification."]
[]
[null,"Trial Output"]
[null,null,"User Define Function : SpellNumber_USD2()"]
[null,"Number","Currency Alphabet Word Converted"]
[null,123456789.56,{"$f":"SpellNumber_USD2(B8)","v":"One Hundred Twenty Three Million Four Hundred Fifty Six Thousand Seven Hundred Eighty Nine US Dollars"},"<-- No display of Cents"]
[null,364597,{"$f":"SpellNumber_USD2(B9)","v":"Three Hundred Sixty Four Thousand Five Hundred Ninety Seven US Dollars"},"<-- No display of Cents"]
[null,11.34,"Eleven US Dollars","<-- No display of Cents"]
[null,23.68,"Twenty Three US Dollars","<-- No display of Cents"]
[null,946257,"Nine Hundred Forty Six Thousand Two Hundred Fifty Seven US Dollars","<-- No display of Cents"]

{"sheet":"JPY","index":3,"n_rows":12,"n_cols":4,"rows_kept":12,"cut":false,"hidden":false,"merged":[]}
["Converter-4 (JPY) : Yen Amount Number to English Word"]
[null,"This Spell Number VBA Macro displays Japanese Yen Currency English Word with no display of decimal figure."]
[null,"This VBA Macro was prepared on Microsoft Spell Numbering VBA Macro with minor modification."]
[]
[null,"Trial Output"]
[null,null,"User Define Function : SpellNumber_JPY()"]
[null,"Number","Currency Alphabet Word Converted"]
[null,123456789.56,{"$f":"SpellNumber_JPY(B8)","v":"One Hundred Twenty Three Million Four Hundred Fifty Six Thousand Seven Hundred Eighty Nine Japanese Yen"},"<-- No display of decimal figure"]
[null,364597,{"$f":"SpellNumber_JPY(B9)","v":"Three Hundred Sixty Four Thousand Five Hundred Ninety Seven Japanese Yen"},"<-- No display of decimal figure"]
[null,11.34,"Eleven Japanese Yen","<-- No display of decimal figure"]
[null,23.68,"Twenty Three Japanese Yen","<-- No display of decimal figure"]
[null,946257,"Nine Hundred Forty Six Thousand Two Hundred Fifty Seven Japanese Yen","<-- No display of decimal figure"]

{"sheet":"Ind_IDR","index":4,"n_rows":16,"n_cols":4,"rows_kept":16,"cut":false,"hidden":false,"merged":[]}
["Converter-5 (IDR) : Indonesian IDR Amount Number to Bahasa Word"]
[null,"This Spell Number VBA Macro displays IDR Currency Bahasa Word with no display of decimal figure."]
[null,"This VBA Macro was prepared on Microsoft Spell Numbering VBA Macro with minor modification."]
[]
[null,"Trial Output"]
[null,null,"User Define Function : SpellNumber_Indonesia()"]
[null,"Number","Currency Alphabet Word Converted"]
[null,123456789.56,{"$f":"SpellNumber_Indonesia(B8)","v":"Seratus dua puluh tiga juta empat ratus lima puluh enam ribu tujuh ratus delapan puluh sembilan Rupiah"},"<-- No display of decimal figure"]
[null,364597,{"$f":"SpellNumber_Indonesia(B9)","v":"Tiga ratus enam puluh empat ribu lima ratus sembilan puluhtujuh Rupiah"},"<-- No display of decimal figure"]
[null,11.34,"Sebelas Rupiah","<-- No display of decimal figure"]
[null,23.68,"Dua puluh tiga Rupiah","<-- No display of decimal figure"]
[null,946257,"Sembilan ratus empat puluh enam ribu dua ratus lima puluh tujuh Rupiah","<-- No display of decimal figure"]
[null,361597,"Tiga ratus enam puluh satu ribu lima ratus sembilan puluhtujuh Rupiah","<-- No display of decimal figure"]
[null,1546,"Seribu lima ratus empat puluh enam Rupiah","<-- No display of decimal figure"]
[null,11476,"Sebelas ribu empat ratus tujuh puluh enam Rupiah","<-- No display of decimal figure"]
[null,21069,"Dua puluh satu ribu enam puluh sembilan Rupiah","<-- No display of decimal figure"]

{"sheet":"Ind_USD","index":5,"n_rows":16,"n_cols":3,"rows_kept":16,"cut":false,"hidden":false,"merged":[]}
["Converter-6 (USD) : USD Amount Number to Bahasa Word"]
[null,"This Spell Number VBA Macro displays USD Currency Bahasa Word with no display of decimal figure."]
[null,"This VBA Macro was prepared on Microsoft Spell Numbering VBA Macro with minor modification."]
[]
[null,"Trial Output"]
[null,null,"User Define Function : SpellNumber_Indonesia_USD()"]
[null,"Number","Currency Alphabet Word Converted"]
[null,123456789.56,{"$f":"SpellNumber_Indonesia_USD(B8)","v":"Seratus dua puluh tiga juta empat ratus lima puluh enam ribu tujuh ratus delapan puluh sembilan koma lima enam Dolar Amerika Serikat"}]
[null,364597,{"$f":"SpellNumber_Indonesia_USD(B9)","v":"Tiga ratus enam puluh empat ribu lima ratus sembilan puluhtujuh Dolar Amerika Serikat"}]
[null,11.34,"Sebelas koma tiga empat Dolar Amerika Serikat"]
[null,23.68,"Dua puluh tiga koma enam delapan Dolar Amerika Serikat"]
[null,946257,"Sembilan ratus empat puluh enam ribu dua ratus lima puluh tujuh Dolar Amerika Serikat"]
[null,361597,"Tiga ratus enam puluh satu ribu lima ratus sembilan puluhtujuh Dolar Amerika Serikat"]
[null,1546.32,"Seribu lima ratus empat puluh enam koma tiga dua Dolar Amerika Serikat"]
[null,11476.86,"Sebelas ribu empat ratus tujuh puluh enam koma delapan enam Dolar Amerika Serikat"]
[null,21069.01,"Dua puluh satu ribu enam puluh sembilan koma nol satu Dolar Amerika Serikat"]